[Event "Titled Tuesday Blitz May 9 Early 2023"]
[White "Donchenko, Alexander"]
[Black "Skliarov, Viktor"]
[WhiteFideId "24603295"]
[BlackFideId "14106736"]
[WhiteElo "2554"]
[BlackElo "2317"]
[Result "1/2-1/2"]
[Round "02"]
[TimeControl "180+2"]
[Date "2023.05.09"]
[WhiteClock "0:00:06"]
[BlackClock "0:00:05"]

1. d4 {[%clk 0:02:57]}  Nf6 {[%clk 0:02:59]} 2. c4 {[%clk 0:02:57]}  e6 {[%clk 0:03:00]} 3. Nc3 {[%clk 0:02:57]}  Bb4 {[%clk 0:03:00]} 4. e3 {[%clk 0:02:56]}  b6 {[%clk 0:03:01]} 5. Ne2 {[%clk 0:02:56]}  Ne4 {[%clk 0:03:01]} 6. Qc2 {[%clk 0:02:55]}  Bb7 {[%clk 0:03:01]} 7. a3 {[%clk 0:02:51]}  Bxc3+ {[%clk 0:03:01]} 8. Nxc3 {[%clk 0:02:52]}  Nxc3 {[%clk 0:03:02]} 9. Qxc3 {[%clk 0:02:52]}  O-O {[%clk 0:03:02]} 10. Bd2 {[%clk 0:02:50]}  d6 {[%clk 0:03:02]} 11. Qc2 {[%clk 0:02:42]}  Nd7 {[%clk 0:02:46]} 12. Bd3 {[%clk 0:02:41]}  f5 {[%clk 0:02:44]} 13. f3 {[%clk 0:02:34]}  Qh4+ {[%clk 0:02:41]} 14. Ke2 {[%clk 0:02:29]}  Rae8 {[%clk 0:02:31]} 15. Raf1 {[%clk 0:01:56]}  Qh5 {[%clk 0:02:15]} 16. Ke1 {[%clk 0:01:43]}  e5 {[%clk 0:02:12]} 17. d5 {[%clk 0:01:43]}  e4 {[%clk 0:01:34]} 18. fxe4 {[%clk 0:01:43]}  fxe4 {[%clk 0:01:34]} 19. Rxf8+ {[%clk 0:01:43]}  Nxf8 {[%clk 0:01:34]} 20. Be2 {[%clk 0:01:43]}  Qh4+ {[%clk 0:01:26]} 21. Kd1 {[%clk 0:01:39]}  Qf2 {[%clk 0:01:19]} 22. Rf1 {[%clk 0:01:30]}  Qxg2 {[%clk 0:01:17]} 23. Bc3 {[%clk 0:01:26]}  Bc8 {[%clk 0:01:13]} 24. Qa4 {[%clk 0:01:00]}  Bd7 {[%clk 0:00:44]} 25. Rxf8+ {[%clk 0:00:56]}  Rxf8 {[%clk 0:00:26]} 26. Qxd7 {[%clk 0:00:57]}  h6 {[%clk 0:00:26]} 27. Qg4 {[%clk 0:00:43]}  Rf1+ {[%clk 0:00:24]} 28. Be1 {[%clk 0:00:34]}  Qxg4 {[%clk 0:00:18]} 29. Bxg4 {[%clk 0:00:35]}  Rh1 {[%clk 0:00:16]} 30. h3 {[%clk 0:00:35]}  h5 {[%clk 0:00:13]} 31. Bf5 {[%clk 0:00:32]}  g6 {[%clk 0:00:11]} 32. Bxe4 {[%clk 0:00:27]}  Rxh3 {[%clk 0:00:11]} 33. Bxg6 {[%clk 0:00:28]}  Rh2 {[%clk 0:00:08]} 34. Bc3 {[%clk 0:00:21]}  h4 {[%clk 0:00:08]} 35. Ke1 {[%clk 0:00:21]}  h3 {[%clk 0:00:04]} 36. Kf1 {[%clk 0:00:21]}  Rg2 {[%clk 0:00:03]} 37. Be4 {[%clk 0:00:21]}  Rg3 {[%clk 0:00:03]} 38. Kf2 {[%clk 0:00:20]}  Rg4 {[%clk 0:00:03]} 39. Bf3 {[%clk 0:00:20]}  h2 {[%clk 0:00:04]} 40. b3 {[%clk 0:00:12]}  Rg1 {[%clk 0:00:04]} 41. Bf6 {[%clk 0:00:10]}  h1=Q {[%clk 0:00:04]} 42. Bxh1 {[%clk 0:00:11]}  Rxh1 {[%clk 0:00:04]} 43. Bd8 {[%clk 0:00:12]}  Rb1 {[%clk 0:00:05]} 44. b4 {[%clk 0:00:11]}  Rc1 {[%clk 0:00:04]} 45. Bxc7 {[%clk 0:00:10]}  Rxc4 {[%clk 0:00:04]} 46. Bxd6 {[%clk 0:00:11]}  Rc3 {[%clk 0:00:04]} 47. b5 {[%clk 0:00:08]}  Rb3 {[%clk 0:00:04]} 48. Bb4 {[%clk 0:00:09]}  Kf7 {[%clk 0:00:03]} 49. Kf3 {[%clk 0:00:09]}  Kf6 {[%clk 0:00:04]} 50. Ke4 {[%clk 0:00:09]}  Rb1 {[%clk 0:00:03]} 51. Kd4 {[%clk 0:00:07]}  Rd1+ {[%clk 0:00:04]} 52. Ke4 {[%clk 0:00:07]}  Rb1 {[%clk 0:00:04]} 53. Kf4 {[%clk 0:00:06]}  Rf1+ {[%clk 0:00:04]} 54. Ke4 {[%clk 0:00:06]}  Rb1 {[%clk 0:00:05]} 1/2-1/2


[Site "https://www.chess.com"]

[Event "Titled Tuesday Blitz May 9 Early 2023"]
[White "Agibileg, Uurtsaikh"]
[Black "Hayrapetyan, Hovik"]
[WhiteFideId "4901606"]
[BlackFideId "13302639"]
[WhiteElo "2353"]
[BlackElo "2348"]
[Result "1-0"]
[Round "02"]
[TimeControl "180+2"]
[Date "2023.05.09"]
[WhiteClock "0:00:34"]
[BlackClock "0:00:00"]

1. d4 {[%clk 0:03:00]}  Nf6 {[%clk 0:02:58]} 2. c4 {[%clk 0:03:00]}  e6 {[%clk 0:02:58]} 3. Nc3 {[%clk 0:03:00]}  Bb4 {[%clk 0:02:58]} 4. f3 {[%clk 0:02:59]}  d5 {[%clk 0:02:56]} 5. a3 {[%clk 0:02:59]}  Bxc3+ {[%clk 0:02:56]} 6. bxc3 {[%clk 0:02:59]}  c5 {[%clk 0:02:56]} 7. cxd5 {[%clk 0:02:58]}  Nxd5 {[%clk 0:02:57]} 8. dxc5 {[%clk 0:02:58]}  Qa5 {[%clk 0:02:57]} 9. e4 {[%clk 0:02:56]}  Nf6 {[%clk 0:02:57]} 10. Be3 {[%clk 0:02:57]}  O-O {[%clk 0:02:54]} 11. Kf2 {[%clk 0:02:54]}  Nfd7 {[%clk 0:02:52]} 12. a4 {[%clk 0:02:49]}  Nxc5 {[%clk 0:02:50]} 13. Qd6 {[%clk 0:02:48]}  Nxa4 {[%clk 0:02:50]} 14. Ne2 {[%clk 0:02:37]}  Bd7 {[%clk 0:02:48]} 15. h4 {[%clk 0:02:36]}  Rc8 {[%clk 0:02:18]} 16. h5 {[%clk 0:02:29]}  Qc7 {[%clk 0:02:09]} 17. Qxc7 {[%clk 0:02:06]}  Rxc7 {[%clk 0:02:10]} 18. h6 {[%clk 0:02:07]}  g6 {[%clk 0:01:44]} 19. e5 {[%clk 0:01:46]}  Na6 {[%clk 0:01:34]} 20. Ng3 {[%clk 0:01:37]}  N6c5 {[%clk 0:01:31]} 21. Ra3 {[%clk 0:01:31]}  Bc6 {[%clk 0:01:15]} 22. Be2 {[%clk 0:01:18]}  b5 {[%clk 0:01:15]} 23. Rd1 {[%clk 0:01:13]}  a5 {[%clk 0:01:10]} 24. Rd6 {[%clk 0:01:05]}  Be8 {[%clk 0:00:49]} 25. Bd4 {[%clk 0:00:47]}  b4 {[%clk 0:00:45]} 26. cxb4 {[%clk 0:00:46]}  axb4 {[%clk 0:00:46]} 27. Ra1 {[%clk 0:00:46]}  Nb3 {[%clk 0:00:45]} 28. Rb1 {[%clk 0:00:44]}  Nxd4 {[%clk 0:00:43]} 29. Rxd4 {[%clk 0:00:44]}  Rc5 {[%clk 0:00:10]} 30. Rdxb4 {[%clk 0:00:43]}  Rxe5 {[%clk 0:00:07]} 31. Rb8 {[%clk 0:00:43]}  Rea5 {[%clk 0:00:03]} 32. Ne4 {[%clk 0:00:43]}  Kf8 {[%clk 0:00:01]} 33. Nf6 {[%clk 0:00:37]}  Ke7 {[%clk 0:00:01]} 34. Nxh7 {[%clk 0:00:37]}  Bd7 {[%clk 0:00:01]} 35. Rxa8 {[%clk 0:00:37]}  Rxa8 {[%clk 0:00:02]} 36. Rb7 {[%clk 0:00:36]}  Nc3 {[%clk 0:00:02]} 37. Bd3 {[%clk 0:00:35]}  Nd5 {[%clk 0:00:00]} 38. Bb5 {[%clk 0:00:34]} 1-0


[Site "https://www.chess.com"]

[Event "Titled Tuesday Blitz May 9 Early 2023"]
[White "Ohanyan, Emin"]
[Black "Sreyas Payyappat"]
[WhiteFideId "13312022"]
[BlackFideId "46674969"]
[WhiteElo "2411"]
[BlackElo "2043"]
[Result "1-0"]
[Round "02"]
[TimeControl "180+2"]
[Date "2023.05.09"]
[WhiteClock "0:00:07"]
[BlackClock "0:00:00"]

1. e4 {[%clk 0:03:00]}  c6 {[%clk 0:02:58]} 2. d4 {[%clk 0:03:01]}  d5 {[%clk 0:02:59]} 3. Nc3 {[%clk 0:03:01]}  dxe4 {[%clk 0:02:59]} 4. Nxe4 {[%clk 0:03:02]}  Nf6 {[%clk 0:03:00]} 5. Nxf6+ {[%clk 0:03:00]}  exf6 {[%clk 0:03:01]} 6. c3 {[%clk 0:03:01]}  Bd6 {[%clk 0:03:01]} 7. Bd3 {[%clk 0:03:01]}  O-O {[%clk 0:03:00]} 8. Qc2 {[%clk 0:03:01]}  Re8+ {[%clk 0:03:00]} 9. Ne2 {[%clk 0:03:01]}  h5 {[%clk 0:02:59]} 10. O-O {[%clk 0:03:01]}  h4 {[%clk 0:02:59]} 11. h3 {[%clk 0:03:02]}  Nd7 {[%clk 0:02:58]} 12. Bf4 {[%clk 0:03:02]}  Nf8 {[%clk 0:02:56]} 13. Bxd6 {[%clk 0:02:58]}  Qxd6 {[%clk 0:02:56]} 14. Rfe1 {[%clk 0:02:57]}  Be6 {[%clk 0:02:54]} 15. Qd2 {[%clk 0:02:57]}  Rad8 {[%clk 0:02:46]} 16. Qf4 {[%clk 0:02:54]}  Qxf4 {[%clk 0:02:40]} 17. Nxf4 {[%clk 0:02:55]}  c5 {[%clk 0:02:40]} 18. d5 {[%clk 0:02:23]}  Bc8 {[%clk 0:02:07]} 19. Bb5 {[%clk 0:01:20]}  Re5 {[%clk 0:01:47]} 20. c4 {[%clk 0:01:14]}  Nd7 {[%clk 0:01:35]} 21. Bxd7 {[%clk 0:00:53]}  Bxd7 {[%clk 0:01:26]} 22. Rxe5 {[%clk 0:00:52]}  fxe5 {[%clk 0:01:25]} 23. Nd3 {[%clk 0:00:53]}  b5 {[%clk 0:00:40]} 24. b3 {[%clk 0:00:46]}  bxc4 {[%clk 0:00:16]} 25. bxc4 {[%clk 0:00:47]}  Bf5 {[%clk 0:00:12]} 26. Nxe5 {[%clk 0:00:28]}  f6 {[%clk 0:00:10]} 27. Nc6 {[%clk 0:00:24]}  Rd7 {[%clk 0:00:08]} 28. Na5 {[%clk 0:00:16]}  Re7 {[%clk 0:00:03]} 29. Nb3 {[%clk 0:00:15]}  Rc7 {[%clk 0:00:02]} 30. d6 {[%clk 0:00:07]}  Rd7 {[%clk 0:00:00]} 31. Rd1 {[%clk 0:00:07]} 1-0


[Site "https://www.chess.com"]

[Event "Titled Tuesday Blitz May 9 Early 2023"]
[White "Mekhitarian, Krikor Sevag"]
[Black "wqws"]
[WhiteFideId "2107660"]
[WhiteElo "2604"]
[BlackElo "2559"]
[Result "1-0"]
[Round "02"]
[TimeControl "180+2"]
[Date "2023.05.09"]
[WhiteClock "0:00:05"]
[BlackClock "0:00:02"]

1. Nf3 {[%clk 0:02:57]}  Nf6 {[%clk 0:02:57]} 2. c4 {[%clk 0:02:57]}  e6 {[%clk 0:02:55]} 3. Nc3 {[%clk 0:02:54]}  d5 {[%clk 0:02:52]} 4. cxd5 {[%clk 0:02:54]}  exd5 {[%clk 0:02:52]} 5. d4 {[%clk 0:02:55]}  c6 {[%clk 0:02:45]} 6. Bf4 {[%clk 0:02:55]}  Bd6 {[%clk 0:02:45]} 7. Bxd6 {[%clk 0:02:55]}  Qxd6 {[%clk 0:02:46]} 8. e3 {[%clk 0:02:55]}  O-O {[%clk 0:02:46]} 9. Bd3 {[%clk 0:02:55]}  Bg4 {[%clk 0:02:46]} 10. h3 {[%clk 0:02:51]}  Bh5 {[%clk 0:02:46]} 11. Qc2 {[%clk 0:02:48]}  Nbd7 {[%clk 0:02:46]} 12. g4 {[%clk 0:02:42]}  Bg6 {[%clk 0:02:46]} 13. O-O-O {[%clk 0:02:43]}  b5 {[%clk 0:02:41]} 14. Kb1 {[%clk 0:02:42]}  b4 {[%clk 0:02:39]} 15. Ne2 {[%clk 0:02:32]}  Bxd3 {[%clk 0:02:34]} 16. Qxd3 {[%clk 0:02:26]}  Ne4 {[%clk 0:02:34]} 17. Rhf1 {[%clk 0:02:26]}  a5 {[%clk 0:02:30]} 18. Nd2 {[%clk 0:02:25]}  Ndf6 {[%clk 0:02:13]} 19. f3 {[%clk 0:02:22]}  Nxd2+ {[%clk 0:02:13]} 20. Qxd2 {[%clk 0:02:22]}  Rfe8 {[%clk 0:02:12]} 21. Nf4 {[%clk 0:02:20]}  a4 {[%clk 0:02:04]} 22. Rfe1 {[%clk 0:02:13]}  Nd7 {[%clk 0:01:46]} 23. Nd3 {[%clk 0:02:13]}  b3 {[%clk 0:01:17]} 24. a3 {[%clk 0:02:12]}  Nb6 {[%clk 0:01:18]} 25. Qb4 {[%clk 0:02:08]}  Qc7 {[%clk 0:01:04]} 26. f4 {[%clk 0:01:50]}  Nc4 {[%clk 0:01:00]} 27. Ne5 {[%clk 0:01:50]}  Nxe5 {[%clk 0:00:55]} 28. dxe5 {[%clk 0:01:47]}  f6 {[%clk 0:00:50]} 29. exf6 {[%clk 0:01:45]}  gxf6 {[%clk 0:00:51]} 30. Qc3 {[%clk 0:01:42]}  Qd6 {[%clk 0:00:46]} 31. g5 {[%clk 0:01:42]}  fxg5 {[%clk 0:00:45]} 32. Rg1 {[%clk 0:01:41]}  h6 {[%clk 0:00:44]} 33. h4 {[%clk 0:01:24]}  Re4 {[%clk 0:00:42]} 34. hxg5 {[%clk 0:01:23]}  h5 {[%clk 0:00:42]} 35. f5 {[%clk 0:01:19]}  Rae8 {[%clk 0:00:41]} 36. g6 {[%clk 0:01:10]}  Rxe3 {[%clk 0:00:39]} 37. Qd4 {[%clk 0:00:49]}  c5 {[%clk 0:00:30]} 38. Qh4 {[%clk 0:00:35]}  Qe5 {[%clk 0:00:13]} 39. f6 {[%clk 0:00:29]}  Re2 {[%clk 0:00:12]} 40. f7+ {[%clk 0:00:28]}  Kg7 {[%clk 0:00:11]} 41. fxe8=N+ {[%clk 0:00:27]}  Kh6 {[%clk 0:00:05]} 42. Qg5+ {[%clk 0:00:11]}  Qxg5 {[%clk 0:00:05]} 43. Rxg5 {[%clk 0:00:12]}  Kxg5 {[%clk 0:00:05]} 44. Rg1+ {[%clk 0:00:12]}  Kh6 {[%clk 0:00:05]} 45. g7 {[%clk 0:00:13]}  Rxe8 {[%clk 0:00:05]} 46. g8=Q {[%clk 0:00:14]}  Rxg8 {[%clk 0:00:06]} 47. Rxg8 {[%clk 0:00:14]}  h4 {[%clk 0:00:06]} 48. Kc1 {[%clk 0:00:07]}  c4 {[%clk 0:00:05]} 49. Kd2 {[%clk 0:00:07]}  Kh5 {[%clk 0:00:05]} 50. Kc3 {[%clk 0:00:07]}  h3 {[%clk 0:00:06]} 51. Kd4 {[%clk 0:00:07]}  Kh4 {[%clk 0:00:05]} 52. Kxd5 {[%clk 0:00:06]}  c3 {[%clk 0:00:05]} 53. bxc3 {[%clk 0:00:06]}  b2 {[%clk 0:00:06]} 54. Rb8 {[%clk 0:00:02]}  h2 {[%clk 0:00:07]} 55. Kd4 {[%clk 0:00:01]}  Kg3 {[%clk 0:00:05]} 56. Rg8+ {[%clk 0:00:01]}  Kf3 {[%clk 0:00:05]} 57. Rf8+ {[%clk 0:00:02]}  Ke2 {[%clk 0:00:06]} 58. Re8+ {[%clk 0:00:02]}  Kd2 {[%clk 0:00:06]} 59. Rh8 {[%clk 0:00:02]}  b1=Q {[%clk 0:00:01]} 60. Rxh2+ {[%clk 0:00:03]}  Kc1 {[%clk 0:00:02]} 61. Rh1+ {[%clk 0:00:03]}  Kb2 {[%clk 0:00:02]} 62. Rxb1+ {[%clk 0:00:04]}  Kxb1 {[%clk 0:00:03]} 63. Kc4 {[%clk 0:00:04]}  Kc2 {[%clk 0:00:02]} 64. Kb4 {[%clk 0:00:05]} 1-0


[Site "https://www.chess.com"]

[Event "Titled Tuesday Blitz May 9 Early 2023"]
[White "Spitzl, Vinzent"]
[Black "Seo, Jung Min"]
[WhiteFideId "12901253"]
[BlackFideId "1734687"]
[WhiteElo "2225"]
[BlackElo "2468"]
[Result "1/2-1/2"]
[Round "02"]
[TimeControl "180+2"]
[Date "2023.05.09"]
[WhiteClock "0:00:05"]
[BlackClock "0:00:10"]

1. e4 {[%clk 0:03:00]}  e5 {[%clk 0:02:59]} 2. Nf3 {[%clk 0:03:01]}  Nc6 {[%clk 0:02:59]} 3. Bb5 {[%clk 0:03:01]}  a6 {[%clk 0:02:57]} 4. Ba4 {[%clk 0:03:02]}  Nge7 {[%clk 0:02:57]} 5. c3 {[%clk 0:03:00]}  Ng6 {[%clk 0:02:52]} 6. d4 {[%clk 0:02:57]}  exd4 {[%clk 0:02:52]} 7. cxd4 {[%clk 0:02:57]}  Bb4+ {[%clk 0:02:52]} 8. Nc3 {[%clk 0:02:53]}  d5 {[%clk 0:02:49]} 9. exd5 {[%clk 0:02:49]}  Qxd5 {[%clk 0:02:49]} 10. O-O {[%clk 0:02:47]}  Bxc3 {[%clk 0:02:49]} 11. bxc3 {[%clk 0:02:46]}  O-O {[%clk 0:02:48]} 12. h3 {[%clk 0:02:42]}  Bf5 {[%clk 0:02:47]} 13. Bb3 {[%clk 0:02:34]}  Qd7 {[%clk 0:02:45]} 14. Re1 {[%clk 0:02:33]}  Na5 {[%clk 0:02:42]} 15. Ba3 {[%clk 0:02:29]}  Rfe8 {[%clk 0:02:32]} 16. Qd2 {[%clk 0:02:29]}  Nxb3 {[%clk 0:02:30]} 17. axb3 {[%clk 0:02:29]}  b5 {[%clk 0:02:28]} 18. Bb4 {[%clk 0:02:25]}  Rxe1+ {[%clk 0:02:27]} 19. Nxe1 {[%clk 0:02:20]}  Ne7 {[%clk 0:02:21]} 20. Nd3 {[%clk 0:02:14]}  Nd5 {[%clk 0:02:21]} 21. Nc5 {[%clk 0:02:05]}  Qc6 {[%clk 0:02:19]} 22. Ba5 {[%clk 0:01:58]}  Nb6 {[%clk 0:02:10]} 23. Bb4 {[%clk 0:01:52]}  Nd7 {[%clk 0:02:08]} 24. Nxd7 {[%clk 0:01:42]}  Qxd7 {[%clk 0:02:07]} 25. Ba5 {[%clk 0:01:28]}  Be6 {[%clk 0:02:05]} 26. b4 {[%clk 0:01:16]}  Bd5 {[%clk 0:02:00]} 27. f3 {[%clk 0:01:15]}  h6 {[%clk 0:01:55]} 28. Re1 {[%clk 0:01:15]}  c6 {[%clk 0:01:48]} 29. Bb6 {[%clk 0:01:11]}  Re8 {[%clk 0:01:44]} 30. Re3 {[%clk 0:01:11]}  Rxe3 {[%clk 0:01:44]} 31. Qxe3 {[%clk 0:01:11]}  Qf5 {[%clk 0:01:44]} 32. Kf2 {[%clk 0:00:50]}  Kh7 {[%clk 0:01:42]} 33. Bc7 {[%clk 0:00:47]}  f6 {[%clk 0:01:41]} 34. h4 {[%clk 0:00:34]}  h5 {[%clk 0:01:40]} 35. Kg3 {[%clk 0:00:32]}  Qg6+ {[%clk 0:01:38]} 36. Kf2 {[%clk 0:00:31]}  Qc2+ {[%clk 0:01:37]} 37. Kg3 {[%clk 0:00:31]}  Qf5 {[%clk 0:01:32]} 38. Kf2 {[%clk 0:00:28]}  Kg6 {[%clk 0:01:32]} 39. Kg3 {[%clk 0:00:28]}  Kh7 {[%clk 0:01:21]} 40. Kf2 {[%clk 0:00:28]}  Qd7 {[%clk 0:01:21]} 41. Bb8 {[%clk 0:00:26]}  Bf7 {[%clk 0:01:18]} 42. Kg3 {[%clk 0:00:20]}  Bg6 {[%clk 0:01:18]} 43. Bf4 {[%clk 0:00:19]}  Qf5 {[%clk 0:01:17]} 44. Bb8 {[%clk 0:00:18]}  Qc2 {[%clk 0:01:17]} 45. Bc7 {[%clk 0:00:17]}  Bd3 {[%clk 0:01:17]} 46. d5 {[%clk 0:00:10]}  cxd5 {[%clk 0:01:16]} 47. Qd4 {[%clk 0:00:10]}  Bf1 {[%clk 0:01:13]} 48. Qf2 {[%clk 0:00:08]}  Qg6+ {[%clk 0:01:11]} 49. Kh2 {[%clk 0:00:08]}  Bc4 {[%clk 0:01:11]} 50. Bb6 {[%clk 0:00:06]}  Qd3 {[%clk 0:01:09]} 51. Bd4 {[%clk 0:00:07]}  Qf5 {[%clk 0:01:08]} 52. Qe3 {[%clk 0:00:07]}  Qg6 {[%clk 0:01:03]} 53. Qf2 {[%clk 0:00:06]}  Bd3 {[%clk 0:01:03]} 54. Qg3 {[%clk 0:00:06]}  Qf7 {[%clk 0:01:03]} 55. Qf2 {[%clk 0:00:07]}  Bf5 {[%clk 0:00:58]} 56. Qe3 {[%clk 0:00:07]}  Bd7 {[%clk 0:00:57]} 57. Qf4 {[%clk 0:00:07]}  Qe6 {[%clk 0:00:56]} 58. Qe3 {[%clk 0:00:06]}  Qd6+ {[%clk 0:00:55]} 59. Kg1 {[%clk 0:00:05]}  Qg3 {[%clk 0:00:54]} 60. Qf2 {[%clk 0:00:05]}  Qg6 {[%clk 0:00:53]} 61. Qe3 {[%clk 0:00:05]}  Bh3 {[%clk 0:00:51]} 62. Qf2 {[%clk 0:00:05]}  Bc8 {[%clk 0:00:48]} 63. Kh2 {[%clk 0:00:05]}  Kg8 {[%clk 0:00:47]} 64. Qg3 {[%clk 0:00:05]}  Qe8 {[%clk 0:00:47]} 65. Qf4 {[%clk 0:00:06]}  Qc6 {[%clk 0:00:45]} 66. Qe3 {[%clk 0:00:06]}  Be6 {[%clk 0:00:44]} 67. Kg1 {[%clk 0:00:06]}  Kf7 {[%clk 0:00:43]} 68. Kh2 {[%clk 0:00:06]}  a5 {[%clk 0:00:39]} 69. bxa5 {[%clk 0:00:06]}  Qc7+ {[%clk 0:00:40]} 70. Kg1 {[%clk 0:00:01]}  Qxa5 {[%clk 0:00:39]} 71. Kh2 {[%clk 0:00:02]}  b4 {[%clk 0:00:37]} 72. cxb4 {[%clk 0:00:02]}  Qxb4 {[%clk 0:00:37]} 73. Qf2 {[%clk 0:00:03]}  Qd6+ {[%clk 0:00:37]} 74. Kg1 {[%clk 0:00:03]}  Qc6 {[%clk 0:00:37]} 75. Qe3 {[%clk 0:00:03]}  Qc2 {[%clk 0:00:37]} 76. Kh2 {[%clk 0:00:03]}  Bf5 {[%clk 0:00:37]} 77. Kg3 {[%clk 0:00:03]}  Bd3 {[%clk 0:00:36]} 78. Kh2 {[%clk 0:00:03]}  Bf1 {[%clk 0:00:36]} 79. Qf2 {[%clk 0:00:03]}  Qc4 {[%clk 0:00:36]} 80. Qe3 {[%clk 0:00:03]}  Bd3 {[%clk 0:00:34]} 81. Qf2 {[%clk 0:00:03]}  Bf5 {[%clk 0:00:33]} 82. Qe3 {[%clk 0:00:04]}  Qc2 {[%clk 0:00:34]} 83. Kg3 {[%clk 0:00:04]}  Bd3 {[%clk 0:00:31]} 84. Bc5 {[%clk 0:00:04]}  Bf1 {[%clk 0:00:28]} 85. Qf2 {[%clk 0:00:04]}  Qg6+ {[%clk 0:00:27]} 86. Kh2 {[%clk 0:00:04]}  Bc4 {[%clk 0:00:27]} 87. Bd4 {[%clk 0:00:04]}  Qf5 {[%clk 0:00:27]} 88. Qe3 {[%clk 0:00:04]}  Bb5 {[%clk 0:00:22]} 89. Kg3 {[%clk 0:00:04]}  Bc4 {[%clk 0:00:17]} 90. Kh2 {[%clk 0:00:05]}  Bf1 {[%clk 0:00:17]} 91. Qf2 {[%clk 0:00:04]}  Kg8 {[%clk 0:00:13]} 92. Qe3 {[%clk 0:00:04]}  Qg6 {[%clk 0:00:11]} 93. Qf2 {[%clk 0:00:04]}  Bb5 {[%clk 0:00:10]} 94. Qe3 {[%clk 0:00:04]}  Qf5 {[%clk 0:00:11]} 95. Qf2 {[%clk 0:00:04]}  Qf4+ {[%clk 0:00:10]} 96. Kg1 {[%clk 0:00:04]}  Bd7 {[%clk 0:00:10]} 97. Be3 {[%clk 0:00:02]}  Qc4 {[%clk 0:00:10]} 98. Bd4 {[%clk 0:00:02]}  Bf5 {[%clk 0:00:11]} 99. Kh2 {[%clk 0:00:02]}  Qd3 {[%clk 0:00:11]} 100. Kg1 {[%clk 0:00:02]}  Bg6 {[%clk 0:00:11]} 101. Kh2 {[%clk 0:00:03]}  Qf5 {[%clk 0:00:11]} 102. Qe3 {[%clk 0:00:03]}  Bf7 {[%clk 0:00:11]} 103. Qf2 {[%clk 0:00:04]}  Be6 {[%clk 0:00:10]} 104. Qe3 {[%clk 0:00:04]}  Kf7 {[%clk 0:00:10]} 105. Qf2 {[%clk 0:00:04]}  Qd3 {[%clk 0:00:10]} 106. Qe3 {[%clk 0:00:04]}  Qc4 {[%clk 0:00:10]} 107. Qf2 {[%clk 0:00:05]}  Bf5 {[%clk 0:00:10]} 108. Qe3 {[%clk 0:00:05]}  Qc2 {[%clk 0:00:10]} 1/2-1/2


[Site "https://www.chess.com"]

[Event "Titled Tuesday Blitz May 9 Early 2023"]
[White "Beerdsen, Thomas"]
[Black "Manukyan, Sargis V."]
[WhiteFideId "1030108"]
[BlackFideId "13303465"]
[WhiteElo "2549"]
[BlackElo "2236"]
[Result "1-0"]
[Round "02"]
[TimeControl "180+2"]
[Date "2023.05.09"]
[WhiteClock "0:01:29"]
[BlackClock "0:00:03"]

1. e4 {[%clk 0:03:00]}  e6 {[%clk 0:02:57]} 2. c4 {[%clk 0:03:00]}  d5 {[%clk 0:02:55]} 3. cxd5 {[%clk 0:03:01]}  exd5 {[%clk 0:02:55]} 4. Qb3 {[%clk 0:03:02]}  dxe4 {[%clk 0:02:47]} 5. Nc3 {[%clk 0:03:02]}  Nf6 {[%clk 0:02:33]} 6. Bc4 {[%clk 0:03:03]}  Qe7 {[%clk 0:02:33]} 7. d3 {[%clk 0:03:03]}  exd3+ {[%clk 0:02:28]} 8. Kf1 {[%clk 0:03:04]}  Nc6 {[%clk 0:02:05]} 9. Bg5 {[%clk 0:03:04]}  Nd4 {[%clk 0:01:56]} 10. Qa4+ {[%clk 0:02:49]}  Bd7 {[%clk 0:01:54]} 11. Bxf7+ {[%clk 0:02:46]}  Qxf7 {[%clk 0:01:34]} 12. Qxd4 {[%clk 0:02:47]}  O-O-O {[%clk 0:01:29]} 13. Qxa7 {[%clk 0:02:43]}  Bc6 {[%clk 0:01:24]} 14. Rd1 {[%clk 0:02:39]}  Qc4 {[%clk 0:01:02]} 15. Qa8+ {[%clk 0:02:31]}  Kd7 {[%clk 0:01:01]} 16. Qa5 {[%clk 0:02:32]}  Bc5 {[%clk 0:00:47]} 17. Nf3 {[%clk 0:02:28]}  Rhe8 {[%clk 0:00:32]} 18. b3 {[%clk 0:02:12]}  Bb4 {[%clk 0:00:26]} 19. Qf5+ {[%clk 0:02:08]}  Qe6 {[%clk 0:00:25]} 20. Rxd3+ {[%clk 0:02:06]}  Kc8 {[%clk 0:00:24]} 21. Rxd8+ {[%clk 0:02:06]}  Kxd8 {[%clk 0:00:22]} 22. Qd3+ {[%clk 0:01:47]}  Kc8 {[%clk 0:00:22]} 23. Be3 {[%clk 0:01:46]}  Bxf3 {[%clk 0:00:13]} 24. gxf3 {[%clk 0:01:46]}  Rd8 {[%clk 0:00:13]} 25. Qc2 {[%clk 0:01:43]}  Bxc3 {[%clk 0:00:11]} 26. Qxc3 {[%clk 0:01:44]}  Nd5 {[%clk 0:00:07]} 27. Qc1 {[%clk 0:01:35]}  Qh3+ {[%clk 0:00:06]} 28. Ke2 {[%clk 0:01:35]}  Rf8 {[%clk 0:00:05]} 29. f4 {[%clk 0:01:34]}  Qg4+ {[%clk 0:00:04]} 30. Ke1 {[%clk 0:01:29]}  Qf3 {[%clk 0:00:04]} 31. Rg1 {[%clk 0:01:29]}  Re8 {[%clk 0:00:04]} 32. Rxg7 {[%clk 0:01:28]}  Nxe3 {[%clk 0:00:03]} 33. Qxc7# {[%clk 0:01:29]} 1-0


[Site "https://www.chess.com"]

[Event "Titled Tuesday Blitz May 9 Early 2023"]
[White "Perez Ponsa, Federico"]
[Black "Danielyan, Vahe"]
[WhiteFideId "117927"]
[BlackFideId "13304828"]
[WhiteElo "2590"]
[BlackElo "2423"]
[Result "1/2-1/2"]
[Round "02"]
[TimeControl "180+2"]
[Date "2023.05.09"]
[WhiteClock "0:00:06"]
[BlackClock "0:00:06"]

1. d4 {[%clk 0:02:45]}  Nf6 {[%clk 0:02:58]} 2. Nf3 {[%clk 0:02:46]}  e6 {[%clk 0:02:51]} 3. g3 {[%clk 0:02:45]}  b6 {[%clk 0:02:47]} 4. Bg2 {[%clk 0:02:45]}  Bb7 {[%clk 0:02:48]} 5. O-O {[%clk 0:02:45]}  Be7 {[%clk 0:02:47]} 6. c4 {[%clk 0:02:40]}  O-O {[%clk 0:02:47]} 7. Re1 {[%clk 0:02:41]}  Na6 {[%clk 0:02:38]} 8. Qc2 {[%clk 0:02:34]}  c5 {[%clk 0:02:27]} 9. e4 {[%clk 0:02:23]}  Nb4 {[%clk 0:02:18]} 10. Qd1 {[%clk 0:02:19]}  Bxe4 {[%clk 0:02:07]} 11. Nc3 {[%clk 0:02:19]}  Bb7 {[%clk 0:01:58]} 12. d5 {[%clk 0:02:17]}  exd5 {[%clk 0:01:56]} 13. Nh4 {[%clk 0:02:18]}  Re8 {[%clk 0:01:48]} 14. Nf5 {[%clk 0:02:14]}  Bf8 {[%clk 0:01:42]} 15. Rxe8 {[%clk 0:02:08]}  Qxe8 {[%clk 0:01:42]} 16. a3 {[%clk 0:02:06]}  Nc6 {[%clk 0:01:13]} 17. Nxd5 {[%clk 0:01:52]}  Nxd5 {[%clk 0:01:12]} 18. Bxd5 {[%clk 0:01:52]}  Na5 {[%clk 0:01:12]} 19. Bxb7 {[%clk 0:00:56]}  Nxb7 {[%clk 0:01:13]} 20. Qd5 {[%clk 0:00:55]}  Na5 {[%clk 0:01:13]} 21. Bd2 {[%clk 0:00:47]}  Nc6 {[%clk 0:01:11]} 22. Re1 {[%clk 0:00:46]}  Qd8 {[%clk 0:01:09]} 23. Bc3 {[%clk 0:00:36]}  Rc8 {[%clk 0:00:51]} 24. h4 {[%clk 0:00:35]}  g6 {[%clk 0:00:42]} 25. Nd6 {[%clk 0:00:30]}  Bxd6 {[%clk 0:00:29]} 26. Qxd6 {[%clk 0:00:31]}  Nd4 {[%clk 0:00:14]} 27. Bxd4 {[%clk 0:00:20]}  cxd4 {[%clk 0:00:15]} 28. Re7 {[%clk 0:00:19]}  Rc6 {[%clk 0:00:11]} 29. Qxd7 {[%clk 0:00:07]}  Qxd7 {[%clk 0:00:09]} 30. Rxd7 {[%clk 0:00:08]}  Rxc4 {[%clk 0:00:10]} 31. Rxa7 {[%clk 0:00:08]}  Rc1+ {[%clk 0:00:09]} 32. Kg2 {[%clk 0:00:08]}  Rc2 {[%clk 0:00:08]} 33. b4 {[%clk 0:00:08]}  d3 {[%clk 0:00:08]} 34. Rd7 {[%clk 0:00:09]}  d2 {[%clk 0:00:08]} 35. a4 {[%clk 0:00:08]}  Ra2 {[%clk 0:00:07]} 36. a5 {[%clk 0:00:07]}  bxa5 {[%clk 0:00:07]} 37. bxa5 {[%clk 0:00:07]}  Rxa5 {[%clk 0:00:06]} 38. Rxd2 {[%clk 0:00:07]}  h5 {[%clk 0:00:06]} 39. Re2 {[%clk 0:00:06]} 1/2-1/2


[Site "https://www.chess.com"]